fUST/lending_fUST_20250425
["ID","MTS","AMOUNT","RATE_DAILY","PERIOD"]
[358942293,1745574635407,-500.0,0.00016438,2]
[358942294,1745574635417,-500.0,0.00016438,2]
[358942295,1745574635426,-500.0,0.00016438,2]
[358942296,1745574635436,-327.0823173,0.00016473,2]
[358942297,1745574635445,-500.0,0.00016473,2]
[358942298,1745574635455,-500.0,0.00016473,2]
[358942299,1745574635465,-167.63532707,0.00016612,2]
[358942300,1745574635474,-545.0,0.00016632,2]
[358942301,1745574635483,-706.0,0.00016632,2]
[358942302,1745574635491,-2247.0,0.00016632,2]
[358942303,1745574635500,-403.0,0.00016632,2]
[358942304,1745574635509,-221.459,0.00016663,2]
[358942305,1745574635516,-735.9,0.00016712,2]
[358942306,1745574635525,-564.72,0.00016712,2]
[358942307,1745574635534,-612.79,0.00016712,2]
[358942308,1745574635548,-560.24,0.00016712,2]
[358942309,1745574635558,-560.54,0.00016712,2]
[358942310,1745574635566,-567.43,0.00016712,2]
[358942311,1745574635575,-519.35,0.00016712,2]
[358942312,1745574635584,-598.66,0.00016712,2]
[358942313,1745574635593,-580.93,0.00016712,2]
[358942314,1745574635602,-500.0,0.00016712,2]
[358942315,1745574635611,-500.0,0.00016712,2]
[358942316,1745574635620,-1137.01,0.00016712,2]
[358942317,1745574635629,-701.57,0.00016712,2]
[358942318,1745574635639,-675.02,0.00016712,2]
[358942319,1745574635649,-500.0,0.00016712,2]
[358942320,1745574635659,-500.0,0.00016712,2]
[358942321,1745574635669,-342.01802489,0.00016712,2]
[358942322,1745574635678,-729.8,0.00016712,2]
[358942323,1745574635688,-326.23429831,0.00016712,2]
[358942324,1745574635697,-500.0,0.00016712,2]
[358942325,1745574635707,-500.0,0.00016712,2]
[358942326,1745574635715,-589.15,0.00016712,2]
[358942327,1745574635724,-500.0,0.00016712,2]
[358942328,1745574635733,-1194.74,0.00016712,2]
[358942329,1745574635742,-890.98,0.00016712,2]
[358942330,1745574635751,-500.0,0.00016712,2]
[358942331,1745574635760,-500.0,0.00016712,2]
[358942332,1745574635769,-747.85,0.00016712,2]
[358942333,1745574635779,-500.0,0.00016712,2]
[358942334,1745574635788,-500.0,0.00016712,2]
[358942335,1745574635797,-1047.76,0.00016712,2]
[358942336,1745574635807,-2609.82,0.00016712,2]
[358942337,1745574635817,-2055.3,0.00016712,2]
[358942338,1745574635826,-500.0,0.00016712,2]
[358942339,1745574635835,-500.0,0.00016712,2]
[358942340,1745574635843,-500.0,0.00016712,2]
[358942341,1745574635852,-500.0,0.00016712,2]
[358942342,1745574635861,-543.91,0.00016712,2]
[358942343,1745574635871,-777.44,0.00016712,2]
[358942344,1745574635880,-716.34,0.00016712,2]
[358942345,1745574635890,-678.88,0.00016712,2]
[358942346,1745574635899,-772.51,0.00016712,2]
[358942347,1745574635908,-982.72,0.00016712,2]
[358942348,1745574635916,-1655.37,0.00016712,2]
[358942349,1745574635925,-500.0,0.00016712,2]
[358942350,1745574635933,-899.98,0.00016712,2]
[358942351,1745574635941,-1611.73,0.00016712,2]
[358942352,1745574635950,-552.2,0.00016712,2]
[358942353,1745574635959,-500.0,0.00016712,2]
[358942354,1745574635969,-595.05,0.00016712,2]
[358942355,1745574635978,-500.0,0.00016712,2]
[358942356,1745574635987,-588.27,0.00016712,2]
[358942357,1745574635998,-611.83432435,0.00016712,2]
[358942358,1745574636007,-495.49,0.00016712,2]
[358942359,1745574636016,-516.63,0.00016712,2]
[358942360,1745574636025,-799.05,0.00016712,2]
[358942361,1745574636034,-500.0,0.00016712,2]
[358942362,1745574636043,-500.0,0.00016712,2]
[358942363,1745574636053,-1925.42,0.00016712,2]
[358942364,1745574636063,-274.23175171,0.00016712,2]
[358942365,1745574636073,-637.54,0.00016712,2]
[358942366,1745574636083,-986.98,0.00016712,2]
[358942367,1745574636093,-500.0,0.00016712,2]
[358942368,1745574636102,-500.0,0.00016712,2]
[358942369,1745574636112,-492.8518011,0.00016712,2]
[358942370,1745574636121,-2509.5,0.00016712,2]
[358942371,1745574636130,-696.61,0.00016712,2]
[358942372,1745574636139,-1017.51,0.00016712,2]
[358942373,1745574636148,-630.01,0.00016712,2]
[358942374,1745574636158,-554.73,0.00016712,2]
[358942375,1745574636167,-518.88,0.00016712,2]
[358942376,1745574636177,-500.0,0.00016712,2]
[358942377,1745574636186,-500.0,0.00016712,2]
[358942378,1745574636197,-51.32543587,0.00016728,2]
[358942379,1745574636217,-2909.60253506,0.00016728,2]
[358942380,1745574636227,-225.84054016,0.00016973,2]
[358942419,1745574655607,1000.0,0.0001496,2]
[358942422,1745574805845,505.035,0.00025,30]
[358942425,1745575018187,1000.0,0.00025,30]
[358942426,1745575123043,228658.74274509,0.00015,2]
[358942427,1745575123069,276432.85218991,0.00015,2]
[358942437,1745575637114,-1134.60248373,0.00015582,2]
[358942438,1745575637136,-300.0,0.00015678,2]
[358942439,1745575637156,-1162.52022627,0.00015679,2]
[358942465,1745575838462,-316.45056469,0.00015677,2]
[358942466,1745575838471,-214.09413375,0.00015677,2]
[358942467,1745575838481,-500.0,0.00015677,2]
[358942468,1745575838490,-500.0,0.00015677,2]
[358942469,1745575838499,-500.0,0.00015677,2]
[358942470,1745575838509,-500.0,0.00015677,2]
[358942471,1745575838518,-430.32192942,0.00015677,2]
[358942472,1745575838527,-500.0,0.00015677,2]
[358942473,1745575838536,-500.0,0.00015677,2]
[358942474,1745575838545,-500.0,0.00015677,2]
[358942475,1745575838554,-300.0,0.00015677,2]
[358942476,1745575838563,-500.0,0.00015677,2]
[358942477,1745575838572,-500.0,0.00015677,2]
[358942478,1745575838581,-500.0,0.00015677,2]
[358942479,1745575838590,-500.0,0.00015677,2]
[358942480,1745575838599,-500.0,0.00015677,2]
[358942481,1745575838608,-500.0,0.00015677,2]
[358942482,1745575838617,-500.0,0.00015677,2]
[358942484,1745575838626,-500.0,0.00015677,2]
[358942485,1745575838635,-500.0,0.00015677,2]
[358942486,1745575838644,-500.0,0.00015677,2]
[358942487,1745575838653,-500.0,0.00015677,2]
[358942488,1745575838662,-500.0,0.00015677,2]
[358942489,1745575838671,-500.0,0.00015677,2]
[358942490,1745575838680,-500.0,0.00015677,2]
[358942491,1745575838688,-177.44906155,0.00015677,2]
[358942492,1745575838697,-523.17983922,0.00015677,2]
[358942493,1745575838706,-300.0,0.00015677,2]
[358942494,1745575838715,-300.0,0.00015677,2]
[358942495,1745575838724,-300.0,0.00015677,2]
[358942496,1745575838733,-300.0,0.00015677,2]
[358942497,1745575838743,-26849.09040966,0.00015678,2]
[358942498,1745575838752,-213.15000636,0.00015684,2]
[358942499,1745575838761,-199.79276494,0.00015684,2]
[358942500,1745575838770,-259.6907274,0.00015684,2]
[358942501,1745575838779,-250.0,0.00015785,2]
[358942502,1745575838789,-1000.0,0.00015786,2]
[358942503,1745575838798,-300.0,0.00015786,2]
[358942504,1745575838807,-376.77118452,0.000158,2]
[358942505,1745575838816,-500.0,0.000158,2]
[358942506,1745575838825,-260.40749592,0.00016074,2]
[358942507,1745575838835,-500.0,0.00016164,2]
[358942508,1745575838844,-500.0,0.00016164,2]
[358942509,1745575838853,-620.04815295,0.00016164,2]
[358942510,1745575838863,-378.1904151,0.00016338,2]
[358942511,1745575838873,-2074.1613845,0.00016339,2]
[358942512,1745575838882,-160.0,0.00016412,2]
[358942513,1745575838891,-160.0,0.00016412,2]
[358942514,1745575838900,-840.21051354,0.00016412,2]
[358942515,1745575838909,-160.0,0.00016412,2]
[358942516,1745575838921,-12551.44257059,0.00016413,2]
[358942517,1745575838930,-160.0,0.00016413,2]
[358942518,1745575838939,-151.0,0.00016428,2]
[358942519,1745575838949,-207.4,0.00016428,2]
[358942520,1745575838959,-296.88581441,0.00016438,2]
[358942521,1745575838968,-502.12669713,0.00016438,2]
[358942522,1745575838979,-511.15899724,0.00016438,2]
[358942523,1745575838990,-500.0,0.00016438,2]
[358942524,1745575838999,-505.71751721,0.00016438,2]
[358942525,1745575839009,-500.0,0.00016438,2]
[358942526,1745575839019,-500.0,0.00016438,2]
[358942527,1745575839029,-506.99402295,0.00016438,2]
[358942528,1745575839038,-500.0,0.00016438,2]
[358942529,1745575839047,-582.56,0.00016438,2]
[358942530,1745575839056,-500.0,0.00016438,2]
[358942531,1745575839065,-500.0,0.00016438,2]
[358942532,1745575839074,-500.0,0.00016438,2]
[358942533,1745575839084,-500.0,0.00016438,2]
[358942534,1745575839093,-347.38325503,0.00016438,2]
[358942535,1745575839102,-500.0,0.00016438,2]
[358942536,1745575839111,-500.0,0.00016438,2]
[358942537,1745575839121,-500.0,0.00016438,2]
[358942538,1745575839131,-502.79944783,0.00016438,2]
[358942539,1745575839141,-501.13092437,0.00016438,2]
[358942540,1745575839150,-500.0,0.00016438,2]
[358942541,1745575839159,-500.0,0.00016438,2]
[358942542,1745575839170,-500.0,0.00016438,2]
[358942543,1745575839179,-500.0,0.00016438,2]
[358942544,1745575839189,-500.75027755,0.00016438,2]
[358942545,1745575839198,-500.0,0.00016438,2]
[358942546,1745575839208,-500.0,0.00016438,2]
[358942547,1745575839218,-500.0,0.00016438,2]
[358942548,1745575839228,-500.0,0.00016438,2]
[358942549,1745575839239,-500.0,0.00016438,2]
[358942550,1745575839250,-500.0,0.00016438,2]
[358942551,1745575839262,-500.0,0.00016438,2]
[358942552,1745575839271,-500.0,0.00016438,2]
[358942553,1745575839280,-500.0,0.00016438,2]
[358942554,1745575839290,-500.0,0.00016438,2]
[358942555,1745575839299,-513.83,0.00016438,2]
[358942556,1745575839309,-500.0,0.00016438,2]
[358942557,1745575839318,-347.49869662,0.00016438,2]
[358942558,1745575839479,-500.0,0.00016438,2]
[358942559,1745575839488,-500.0,0.00016438,2]
[358942560,1745575839498,-500.0,0.00016438,2]
[358942561,1745575839507,-500.0,0.00016438,2]
[358942562,1745575839517,-500.0,0.00016438,2]
[358942563,1745575839526,-500.0,0.00016438,2]
[358942564,1745575839535,-500.0,0.00016438,2]
[358942565,1745575839544,-500.0,0.00016438,2]
[358942566,1745575839554,-500.0,0.00016438,2]
[358942567,1745575839563,-500.0,0.00016438,2]
[358942568,1745575839572,-500.0,0.00016438,2]
[358942569,1745575839582,-500.0,0.00016438,2]
[358942570,1745575839591,-500.0,0.00016438,2]
[358942571,1745575839600,-500.0,0.00016438,2]
[358942572,1745575839609,-500.0,0.00016438,2]
[358942573,1745575839618,-503.25981306,0.00016438,2]
[358942574,1745575839629,-500.0,0.00016438,2]
[358942575,1745575839638,-500.0,0.00016438,2]
[358942576,1745575839656,-500.0,0.00016438,2]
[358942577,1745575839668,-506.05606934,0.00016438,2]
[358942578,1745575839678,-500.0,0.00016438,2]
[358942579,1745575839688,-500.0,0.00016438,2]
[358942580,1745575839699,-500.0,0.00016438,2]
[358942581,1745575839708,-500.0,0.00016438,2]
[358942582,1745575839718,-500.0,0.00016438,2]
[358942583,1745575839727,-502.51718873,0.00016438,2]
[358942584,1745575839737,-500.0,0.00016438,2]
[358942585,1745575839747,-500.0,0.00016438,2]
[358942586,1745575839756,-500.0,0.00016438,2]
[358942587,1745575839766,-503.99637381,0.00016438,2]
[358942588,1745575839776,-500.0,0.00016438,2]
[358942589,1745575839786,-505.46955128,0.00016438,2]
[358942590,1745575839796,-500.0,0.00016438,2]
[358942591,1745575839805,-500.0,0.00016438,2]
[358942592,1745575839815,-500.0,0.00016438,2]
[358942593,1745575839824,-500.0,0.00016438,2]
[358942594,1745575839834,-500.0,0.00016438,2]
[358942595,1745575839845,-352.14160909,0.00016438,2]
[358942596,1745575839854,-500.0,0.00016438,2]
[358942597,1745575839864,-501.5519591,0.00016438,2]
[358942598,1745575839875,-500.0,0.00016438,2]
[358942599,1745575839884,-505.22116414,0.00016438,2]
[358942600,1745575839895,-513.19703411,0.00016438,2]
[358942601,1745575839904,-500.0,0.00016438,2]
[358942602,1745575839918,-500.0,0.00016438,2]
[358942603,1745575839929,-500.0,0.00016438,2]
[358942604,1745575839939,-500.0,0.00016438,2]
[358942605,1745575839949,-500.0,0.00016438,2]
[358942606,1745575839960,-500.0,0.00016438,2]
[358942607,1745575839970,-500.0,0.00016438,2]
[358942608,1745575839980,-500.0,0.00016438,2]
[358942609,1745575839989,-424.63048973,0.00016438,2]
[358942610,1745575840000,-500.50030673,0.00016438,2]
[358942611,1745575840010,-500.0,0.00016438,2]
[358942612,1745575840019,-500.0,0.00016438,2]
[358942613,1745575840029,-500.0,0.00016438,2]
[358942614,1745575840039,-500.0,0.00016438,2]
[358942615,1745575840048,-262.2593217,0.00016438,2]
[358942616,1745575840059,-500.0,0.00016438,2]
[358942617,1745575840068,-500.0,0.00016438,2]
[358942618,1745575840078,-312.10440083,0.00016438,2]
[358942619,1745575840088,-500.0,0.00016438,2]
[358942620,1745575840099,-500.0,0.00016438,2]
[358942621,1745575840109,-500.0,0.00016438,2]
[358942622,1745575840119,-405.1960295,0.00016438,2]
[358942623,1745575840130,-500.0,0.00016438,2]
[358942624,1745575840139,-500.52044191,0.00016438,2]
[358942625,1745575840149,-502.81330708,0.00016438,2]
[358942626,1745575840159,-500.0,0.00016438,2]
[358942627,1745575840170,-500.0,0.00016438,2]
[358942628,1745575840181,-500.0,0.00016438,2]
[358942629,1745575840194,-500.0,0.00016438,2]
[358942630,1745575840204,-470.08278266,0.00016438,2]
[358942631,1745575840214,-500.0,0.00016438,2]
[358942632,1745575840225,-500.0,0.00016438,2]
[358942633,1745575840234,-500.67072336,0.00016438,2]
[358942634,1745575840244,-360.12297813,0.00016438,2]
[358942635,1745575840255,-501.39744697,0.00016438,2]
[358942636,1745575840264,-500.0,0.00016438,2]
[358942637,1745575840275,-504.87173461,0.00016438,2]
[358942638,1745575840288,-511.54472949,0.00016438,2]
[358942639,1745575840298,-500.0,0.00016438,2]
[358942640,1745575840308,-500.0,0.00016438,2]
[358942641,1745575840319,-500.0,0.00016438,2]
[358942642,1745575840329,-500.0,0.00016438,2]
[358942643,1745575840339,-500.0,0.00016438,2]
[358942644,1745575840349,-500.0,0.00016438,2]
[358942645,1745575840358,-500.42975769,0.00016438,2]
[358942646,1745575840368,-500.0,0.00016438,2]
[358942647,1745575840377,-500.0,0.00016438,2]
[358942648,1745575840387,-550.85231897,0.00016438,2]
[358942649,1745575840396,-513.95308459,0.00016438,2]
[358942650,1745575840405,-500.0,0.00016438,2]
[358942651,1745575840414,-500.0,0.00016438,2]
[358942652,1745575840424,-500.0,0.00016438,2]
[358942653,1745575840434,-568.3,0.00016438,2]
[358942654,1745575840445,-500.0,0.00016438,2]
[358942655,1745575840460,-500.0,0.00016438,2]
[358942656,1745575840470,-351.42555431,0.00016438,2]
[358942657,1745575840480,-500.0,0.00016438,2]
[358942658,1745575840490,-500.0,0.00016438,2]
[358942659,1745575840499,-500.0,0.00016438,2]
[358942660,1745575840508,-512.02526133,0.00016438,2]
[358942661,1745575840517,-500.0,0.00016438,2]
[358942662,1745575840527,-500.0,0.00016438,2]
[358942663,1745575840536,-500.0,0.00016438,2]
[358942664,1745575840545,-500.0,0.00016438,2]
[358942665,1745575840555,-500.0,0.00016438,2]
[358942666,1745575840567,-500.0,0.00016438,2]
[358942667,1745575840578,-309.37989087,0.00016438,2]
[358942668,1745575840589,-500.0,0.00016438,2]
[358942669,1745575840600,-1000.0,0.00016438,2]
[358942670,1745575840609,-500.0,0.00016438,2]
[358942671,1745575840619,-500.0,0.00016438,2]
[358942672,1745575840630,-500.0,0.00016438,2]
[358942673,1745575840639,-500.0,0.00016438,2]
[358942674,1745575840649,-500.0,0.00016438,2]
[358942675,1745575840658,-500.0,0.00016438,2]
[358942676,1745575840668,-500.0,0.00016438,2]
[358942677,1745575840678,-541.85452768,0.00016438,2]
[358942678,1745575840688,-500.0,0.00016438,2]
[358942679,1745575840699,-500.0,0.00016438,2]
[358942680,1745575840709,-500.0,0.00016438,2]
[358942681,1745575840718,-500.0,0.00016438,2]
[358942682,1745575840727,-500.0,0.00016438,2]
[358942683,1745575840738,-500.0,0.00016438,2]
[358942684,1745575840748,-500.0,0.00016438,2]
[358942685,1745575840758,-500.0,0.00016438,2]
[358942686,1745575840769,-501.24595737,0.00016438,2]
[358942687,1745575840785,-500.0,0.00016438,2]
[358942688,1745575840797,-500.0,0.00016438,2]
[358942689,1745575840808,-500.0,0.00016438,2]
[358942691,1745575840818,-500.0,0.00016438,2]
[358942693,1745575840828,-500.0,0.00016438,2]
[358942695,1745575840838,-500.0,0.00016438,2]
[358942697,1745575840848,-500.0,0.00016438,2]
[358942698,1745575840858,-500.0,0.00016438,2]
[358942699,1745575840867,-500.0,0.00016438,2]
[358942700,1745575840877,-500.0,0.00016438,2]
[358942701,1745575840887,-500.0,0.00016438,2]
[358942702,1745575840897,-500.0,0.00016438,2]
[358942703,1745575840906,-500.0,0.00016438,2]
[358942704,1745575840921,-508.67,0.00016438,2]
[358942705,1745575840931,-565.97812567,0.00016438,2]
[358942706,1745575840941,-500.0,0.00016438,2]
[358942707,1745575840951,-500.0,0.00016438,2]
[358942708,1745575840963,-500.0,0.00016438,2]
[358942709,1745575840973,-524.29845308,0.00016438,2]
[358942710,1745575840983,-500.0,0.00016438,2]
[358942711,1745575840994,-500.0,0.00016438,2]
[358942712,1745575841004,-500.0,0.00016438,2]
[358942713,1745575841014,-500.0,0.00016438,2]
[358942714,1745575841023,-500.0,0.00016438,2]
[358942715,1745575841034,-500.0,0.00016438,2]
[358942716,1745575841044,-500.0,0.00016438,2]
[358942717,1745575841054,-500.0,0.00016438,2]
[358942718,1745575841063,-500.0,0.00016438,2]
[358942719,1745575841073,-500.0,0.00016438,2]
[358942720,1745575841082,-500.0,0.00016438,2]
[358942721,1745575841091,-500.0,0.00016438,2]
[358942722,1745575841101,-500.0,0.00016438,2]
[358942723,1745575841111,-500.0,0.00016438,2]
[358942724,1745575841121,-500.0,0.00016438,2]
[358942725,1745575841131,-500.0,0.00016438,2]
[358942726,1745575841141,-500.0,0.00016438,2]
[358942727,1745575841150,-500.0,0.00016438,2]
[358942728,1745575841159,-500.0,0.00016438,2]
[358942729,1745575841170,-500.0,0.00016438,2]
[358942730,1745575841179,-500.0,0.00016438,2]
[358942732,1745575841189,-502.98725979,0.00016438,2]
[358942733,1745575841199,-500.0,0.00016438,2]
[358942734,1745575841208,-500.0,0.00016438,2]
[358942736,1745575841218,-500.0,0.00016438,2]
[358942737,1745575841227,-503.76165229,0.00016438,2]
[358942738,1745575841237,-500.0,0.00016438,2]
[358942739,1745575841247,-500.0,0.00016438,2]
[358942740,1745575841256,-500.0,0.00016438,2]
[358942741,1745575841265,-500.0,0.00016438,2]
[358942742,1745575841275,-500.0,0.00016438,2]
[358942743,1745575841285,-503.55,0.00016438,2]
[358942744,1745575841294,-500.0,0.00016438,2]
[358942745,1745575841304,-500.0,0.00016438,2]
[358942746,1745575841314,-500.0,0.00016438,2]
[358942747,1745575841323,-501.38587479,0.00016438,2]
[358942748,1745575841333,-500.0,0.00016438,2]
[358942749,1745575841343,-633.50454344,0.00016438,2]
[358942750,1745575841354,-500.0,0.00016438,2]
[358942751,1745575841363,-500.21432196,0.00016438,2]
[358942752,1745575841373,-500.0,0.00016438,2]
[358942753,1745575841383,-500.0,0.00016438,2]
[358942754,1745575841392,-500.0,0.00016438,2]
[358942755,1745575841401,-500.0,0.00016438,2]
[358942756,1745575841410,-506.10582599,0.00016438,2]
[358942757,1745575841420,-500.0,0.00016438,2]
[358942758,1745575841429,-500.0,0.00016438,2]
[358942759,1745575841438,-500.0,0.00016438,2]
[358942760,1745575841447,-500.0,0.00016438,2]
[358942761,1745575841457,-500.0,0.00016438,2]
[358942762,1745575841466,-500.0,0.00016438,2]
[358942763,1745575841475,-500.0,0.00016438,2]
[358942764,1745575841487,-500.0,0.00016438,2]
[358942765,1745575841496,-507.26804273,0.00016438,2]
[358942766,1745575841506,-500.0,0.00016438,2]
[358942767,1745575841515,-504.18545654,0.00016438,2]
[358942768,1745575841524,-500.0,0.00016438,2]
[358942769,1745575841534,-500.0,0.00016438,2]
[358942770,1745575841543,-500.0,0.00016438,2]
[358942771,1745575841553,-500.0,0.00016438,2]
[358942772,1745575841562,-500.0,0.00016438,2]
[358942773,1745575841571,-500.0,0.00016438,2]
[358942774,1745575841580,-500.0,0.00016438,2]
[358942775,1745575841589,-532.52,0.00016438,2]
[358942776,1745575841598,-500.0,0.00016438,2]
[358942777,1745575841607,-500.0,0.00016438,2]
[358942778,1745575841616,-504.86039035,0.00016438,2]
[358942779,1745575841626,-343.39421013,0.00016438,2]
[358942780,1745575841637,-500.0,0.00016438,2]
[358942781,1745575841647,-391.5983565,0.00016438,2]
[358942782,1745575841657,-500.0,0.00016438,2]
[358942783,1745575841666,-500.0,0.00016438,2]
[358942784,1745575841676,-500.0,0.00016438,2]
[358942785,1745575841685,-639.6,0.00016438,2]
[358942786,1745575841695,-159.56549582,0.00016438,2]
[358942787,1745575841704,-500.0,0.00016438,2]
[358942788,1745575841713,-649.14331936,0.00016438,2]
[358942789,1745575841723,-500.0,0.00016438,2]
[358942791,1745575841732,-500.0,0.00016438,2]
[358942793,1745575841742,-500.0,0.00016438,2]
[358942794,1745575841751,-500.0,0.00016438,2]
[358942795,1745575841761,-500.0,0.00016438,2]
[358942796,1745575841770,-500.0,0.00016438,2]
[358942797,1745575841779,-500.0,0.00016438,2]
[358942798,1745575841789,-502.59925601,0.00016438,2]
[358942799,1745575841798,-500.0,0.00016438,2]
[358942800,1745575841808,-500.0,0.00016438,2]
[358942801,1745575841817,-540.35114015,0.00016438,2]
[358942802,1745575841827,-500.0,0.00016438,2]
[358942803,1745575841843,-500.0,0.00016438,2]
[358942804,1745575841855,-500.0,0.00016438,2]
[358942805,1745575841865,-500.0,0.00016438,2]
[358942806,1745575841874,-508.34859886,0.00016438,2]
[358942807,1745575841885,-644.22450195,0.00016438,2]
[358942808,1745575841895,-504.03303625,0.00016438,2]
[358942809,1745575841905,-337.02099071,0.00016438,2]
[358942810,1745575841917,-507.17209265,0.00016438,2]
[358942811,1745575841927,-500.0,0.00016438,2]
[358942812,1745575841937,-513.37118924,0.00016438,2]
[358942813,1745575841947,-554.63,0.00016438,2]
[358942814,1745575841957,-500.0,0.00016438,2]
[358942815,1745575841967,-500.0,0.00016438,2]
[358942816,1745575841976,-500.0,0.00016438,2]
[358942817,1745575841986,-501.53352923,0.00016438,2]
[358942818,1745575841996,-500.0,0.00016438,2]
[358942819,1745575842007,-500.0,0.00016438,2]
[358942820,1745575842016,-643.11,0.00016438,2]
[358942821,1745575842026,-500.0,0.00016438,2]
[358942822,1745575842035,-500.0,0.00016438,2]
[358942823,1745575842046,-500.0,0.00016438,2]
[358942824,1745575842056,-500.0,0.00016438,2]
[358942825,1745575842066,-1042.26,0.00016438,2]
[358942826,1745575842076,-500.0,0.00016438,2]
[358942827,1745575842086,-500.0,0.00016438,2]
[358942828,1745575842095,-506.83957224,0.00016438,2]
[358942829,1745575842106,-502.53822142,0.00016438,2]
[358942830,1745575842116,-500.0,0.00016438,2]
[358942831,1745575842126,-500.0,0.00016438,2]
[358942832,1745575842137,-573.96114616,0.00016438,2]
[358942833,1745575842147,-500.0,0.00016438,2]
[358942834,1745575842157,-500.0,0.00016438,2]
[358942835,1745575842167,-500.0,0.00016438,2]
[358942836,1745575842177,-500.0,0.00016438,2]
[358942837,1745575842187,-502.46209574,0.00016438,2]
[358942838,1745575842196,-500.0,0.00016438,2]
[358942839,1745575842207,-514.52288278,0.00016438,2]
[358942840,1745575842216,-500.0,0.00016438,2]
[358942841,1745575842225,-500.0,0.00016438,2]
[358942842,1745575842235,-500.0,0.00016438,2]
[358942843,1745575842245,-500.0,0.00016438,2]
[358942844,1745575842254,-500.0,0.00016438,2]
[358942845,1745575842264,-500.0,0.00016438,2]
[358942846,1745575842273,-500.0,0.00016438,2]
[358942847,1745575842282,-500.0,0.00016438,2]
[358942848,1745575842291,-500.0,0.00016438,2]
[358942849,1745575842301,-503.93878374,0.00016438,2]
[358942850,1745575842310,-500.0,0.00016438,2]
[358942851,1745575842320,-500.0,0.00016438,2]
[358942852,1745575842329,-505.47476453,0.00016438,2]
[358942853,1745575842338,-500.0,0.00016438,2]
[358942854,1745575842347,-500.0,0.00016438,2]
[358942855,1745575842357,-500.0,0.00016438,2]
[358942856,1745575842367,-500.0,0.00016438,2]
[358942857,1745575842377,-500.0,0.00016438,2]
[358942858,1745575842389,-500.0,0.00016438,2]
[358942859,1745575842399,-500.0,0.00016438,2]
[358942860,1745575842409,-502.03870599,0.00016438,2]
[358942861,1745575842418,-500.0,0.00016438,2]
[358942862,1745575842429,-500.0,0.00016438,2]
[358942863,1745575842439,-506.31484319,0.00016438,2]
[358942864,1745575842448,-500.0,0.00016438,2]
[358942865,1745575842458,-500.0,0.00016438,2]
[358942866,1745575842468,-500.0,0.00016438,2]
[358942867,1745575842478,-500.0,0.00016438,2]
[358942868,1745575842487,-500.0,0.00016438,2]
[358942869,1745575842497,-500.0,0.00016438,2]
[358942870,1745575842506,-500.0,0.00016438,2]
[358942871,1745575842516,-500.0,0.00016438,2]
[358942872,1745575842525,-500.0,0.00016438,2]
[358942873,1745575842534,-507.08533951,0.00016438,2]
[358942874,1745575842543,-500.0,0.00016438,2]
[358942875,1745575842552,-500.0,0.00016438,2]
[358942876,1745575842562,-500.0,0.00016438,2]
[358942877,1745575842571,-500.0,0.00016438,2]